[Event "*** Titled Tuesday Blitz"]
[Site "Chess.com"]
[Date "2020.12.29"]
[Round "2"]
[White "Bacyanide"]
[Black "A-S-00"]
[Result "0-1"]
[WhiteElo "2438"]
[BlackElo "2269"]
[TimeControl "180+1"]
[EndTime "10:18:37 PST"]
[Termination "A-S-00 won on time"]

1. d4 {[%clk 0:03:00.9]} 1... Nf6 {[%clk 0:02:59.3]} 2. c4 {[%clk 0:03:00.9]}
2... g6 {[%clk 0:02:59.6]} 3. Nc3 {[%clk 0:03:00]} 3... Bg7 {[%clk 0:03:00.5]}
4. e4 {[%clk 0:02:59.3]} 4... d6 {[%clk 0:03:00.3]} 5. Nf3 {[%clk 0:02:58.1]}
5... O-O {[%clk 0:03:00.3]} 6. Be2 {[%clk 0:02:58.2]} 6... Nbd7 {[%clk
0:02:59.8]} 7. O-O {[%clk 0:02:58.1]} 7... e5 {[%clk 0:02:55]} 8. Re1 {[%clk
0:02:55.5]} 8... exd4 {[%clk 0:02:47.2]} 9. Nxd4 {[%clk 0:02:56.4]} 9... c6
{[%clk 0:02:45.7]} 10. Bf4 {[%clk 0:02:40.2]} 10... Qe7 {[%clk 0:02:39.4]} 11.
Bf1 {[%clk 0:02:35]} 11... Rd8 {[%clk 0:02:35.4]} 12. Qd2 {[%clk 0:02:28.5]}
12... Ne5 {[%clk 0:02:26.3]} 13. h3 {[%clk 0:02:27]} 13... a5 {[%clk 0:02:15]}
14. Rad1 {[%clk 0:02:25.8]} 14... a4 {[%clk 0:02:12.8]} 15. Qc2 {[%clk
0:02:24.2]} 15... Nh5 {[%clk 0:02:11]} 16. Be3 {[%clk 0:02:19.9]} 16... a3
{[%clk 0:02:08.2]} 17. f4 {[%clk 0:02:17.6]} 17... Nd7 {[%clk 0:02:03.7]} 18. b3
{[%clk 0:02:16.5]} 18... Nc5 {[%clk 0:02:00.9]} 19. Nf3 {[%clk 0:01:51.6]} 19...
Ne6 {[%clk 0:01:54.3]} 20. f5 {[%clk 0:01:49.7]} 20... Nf8 {[%clk 0:01:00.6]}
21. g4 {[%clk 0:01:39.7]} 21... Ng3 {[%clk 0:00:55]} 22. Bg2 {[%clk 0:01:38.8]}
22... Bxc3 {[%clk 0:00:48.2]} 23. Qxc3 {[%clk 0:01:39.5]} 23... Nxe4 {[%clk
0:00:48.4]} 24. Qd4 {[%clk 0:01:37.1]} 24... c5 {[%clk 0:00:48.3]} 25. Qd3
{[%clk 0:01:35.8]} 25... Re8 {[%clk 0:00:36.1]} 26. Bh6 {[%clk 0:01:33.7]} 26...
gxf5 {[%clk 0:00:32.2]} 27. Ng5 {[%clk 0:01:22.2]} 27... Qf6 {[%clk 0:00:26.6]}
28. Bxf8 {[%clk 0:01:20.1]} 28... Qxg5 {[%clk 0:00:20.5]} 29. Bxd6 {[%clk
0:01:17.1]} 29... fxg4 {[%clk 0:00:18.5]} 30. Rxe4 {[%clk 0:01:11.2]} 30... Bf5
{[%clk 0:00:18.3]} 31. Rxe8+ {[%clk 0:01:10.2]} 31... Rxe8 {[%clk 0:00:18.4]}
32. Qg3 {[%clk 0:01:08.6]} 32... Re3 {[%clk 0:00:16.5]} 33. Qf4 {[%clk
0:01:08.1]} 33... Qxf4 {[%clk 0:00:15.7]} 34. Bxf4 {[%clk 0:01:09]} 34... Re2
{[%clk 0:00:16.3]} 35. Bh6 {[%clk 0:01:06.5]} 35... f6 {[%clk 0:00:13.9]} 36.
Bd5+ {[%clk 0:01:02.1]} 36... Be6 {[%clk 0:00:13.3]} 37. hxg4 {[%clk 0:01:00.4]}
37... Bxd5 {[%clk 0:00:12.1]} 38. Rxd5 {[%clk 0:01:01.3]} 38... Rxa2 {[%clk
0:00:12.6]} 39. Rd8+ {[%clk 0:00:57.3]} 39... Kf7 {[%clk 0:00:12.6]} 40. Ra8
{[%clk 0:00:58.1]} 40... Ra1+ {[%clk 0:00:12.2]} 41. Kg2 {[%clk 0:00:53.3]}
41... a2 {[%clk 0:00:13.1]} 42. Bf4 {[%clk 0:00:44.8]} 42... Kg6 {[%clk
0:00:11]} 0-1

[Event "*** Titled Tuesday Blitz"]
[Site "Chess.com"]
[Date "2020.12.29"]
[Round "2"]
[White "MacDaddyMac"]
[Black "Chernov_Alexander_A"]
[Result "1/2-1/2"]
[WhiteElo "2482"]
[BlackElo "2312"]
[TimeControl "180+1"]
[EndTime "10:18:39 PST"]
[Termination "Game drawn by repetition"]

1. e4 {[%clk 0:03:00.9]} 1... e5 {[%clk 0:02:58.9]} 2. Nf3 {[%clk 0:03:01.2]}
2... Nc6 {[%clk 0:02:59]} 3. Bb5 {[%clk 0:03:01.6]} 3... Bc5 {[%clk 0:02:58.9]}
4. Nc3 {[%clk 0:03:00.8]} 4... Nd4 {[%clk 0:02:51.8]} 5. O-O {[%clk 0:02:56.7]}
5... c6 {[%clk 0:02:50.3]} 6. Ba4 {[%clk 0:02:56.3]} 6... d6 {[%clk 0:02:45]} 7.
h3 {[%clk 0:02:52.6]} 7... Nf6 {[%clk 0:02:41.5]} 8. Nxd4 {[%clk 0:02:50.1]}
8... Bxd4 {[%clk 0:02:40.8]} 9. Ne2 {[%clk 0:02:50.6]} 9... Bb6 {[%clk 0:02:40]}
10. d3 {[%clk 0:02:50.2]} 10... h6 {[%clk 0:02:36.4]} 11. c3 {[%clk 0:02:50.7]}
11... g5 {[%clk 0:02:34.5]} 12. Be3 {[%clk 0:02:49.2]} 12... Nh5 {[%clk
0:02:27.6]} 13. Bb3 {[%clk 0:02:39.6]} 13... Nf4 {[%clk 0:02:26.7]} 14. Nxf4
{[%clk 0:02:39.8]} 14... gxf4 {[%clk 0:02:25.7]} 15. Qh5 {[%clk 0:02:39.7]}
15... Qf6 {[%clk 0:02:22.3]} 16. Bxb6 {[%clk 0:02:39.8]} 16... axb6 {[%clk
0:02:21.5]} 17. d4 {[%clk 0:02:40.2]} 17... Qg6 {[%clk 0:02:09.9]} 18. Qxg6
{[%clk 0:02:36.5]} 18... fxg6 {[%clk 0:02:09.9]} 19. dxe5 {[%clk 0:02:37.4]}
19... dxe5 {[%clk 0:02:09.7]} 20. Rad1 {[%clk 0:02:38.1]} 20... Ke7 {[%clk
0:02:08.4]} 21. Kh2 {[%clk 0:02:35.9]} 21... Be6 {[%clk 0:02:07.4]} 22. Bxe6
{[%clk 0:02:34.8]} 22... Kxe6 {[%clk 0:02:07.4]} 23. a3 {[%clk 0:02:35.7]} 23...
Rad8 {[%clk 0:02:04]} 24. f3 {[%clk 0:02:36.3]} 24... g5 {[%clk 0:02:00.9]} 25.
h4 {[%clk 0:02:34.5]} 25... Rhg8 {[%clk 0:01:38.6]} 26. Kh3 {[%clk 0:02:28.7]}
26... Rxd1 {[%clk 0:01:28.4]} 27. Rxd1 {[%clk 0:02:28.6]} 27... h5 {[%clk
0:01:28.3]} 28. hxg5 {[%clk 0:02:27.3]} 28... Rxg5 {[%clk 0:01:27.3]} 29. Rd2
{[%clk 0:02:20.8]} 29... b5 {[%clk 0:01:03.3]} 30. Kh4 {[%clk 0:02:18.5]} 30...
Rg8 {[%clk 0:01:00.1]} 31. b3 {[%clk 0:02:05.6]} 31... Rh8 {[%clk 0:00:52.8]}
32. c4 {[%clk 0:02:02.5]} 32... bxc4 {[%clk 0:00:50.5]} 33. bxc4 {[%clk
0:02:03.4]} 33... Ra8 {[%clk 0:00:47.4]} 34. Kxh5 {[%clk 0:01:51.3]} 34... Rxa3
{[%clk 0:00:39]} 35. c5 {[%clk 0:01:51.1]} 35... Rc3 {[%clk 0:00:37.4]} 36. Rd6+
{[%clk 0:01:45.7]} 36... Ke7 {[%clk 0:00:37]} 37. Rh6 {[%clk 0:01:45.6]} 37...
Rxc5 {[%clk 0:00:36.3]} 38. Rh7+ {[%clk 0:01:46.3]} 38... Ke6 {[%clk 0:00:34.7]}
39. Rxb7 {[%clk 0:01:47.2]} 39... Rc2 {[%clk 0:00:33.8]} 40. Rc7 {[%clk
0:01:45.3]} 40... c5 {[%clk 0:00:30.1]} 41. Kh4 {[%clk 0:01:37.7]} 41... c4
{[%clk 0:00:29.6]} 42. g4 {[%clk 0:01:37.9]} 42... fxg3 {[%clk 0:00:28.3]} 43.
Kxg3 {[%clk 0:01:38.4]} 43... c3 {[%clk 0:00:27.9]} 44. Rc6+ {[%clk 0:01:29.2]}
44... Kd7 {[%clk 0:00:26.4]} 45. Rc4 {[%clk 0:01:28.1]} 45... Kd6 {[%clk
0:00:25.2]} 46. Rc8 {[%clk 0:01:27]} 46... Kd7 {[%clk 0:00:24.5]} 47. Rc4 {[%clk
0:01:27.2]} 47... Kd6 {[%clk 0:00:24.5]} 48. Kh3 {[%clk 0:01:18.8]} 48... Rc1
{[%clk 0:00:23.8]} 49. Kg4 {[%clk 0:01:13.4]} 49... c2 {[%clk 0:00:21.6]} 50.
Kf5 {[%clk 0:01:12.7]} 50... Rf1 {[%clk 0:00:20.9]} 51. Rxc2 {[%clk 0:01:12.5]}
51... Rxf3+ {[%clk 0:00:20.6]} 52. Kg5 {[%clk 0:01:12.3]} 52... Rf4 {[%clk
0:00:20.2]} 53. Rc4 {[%clk 0:01:12.9]} 53... Ke6 {[%clk 0:00:19]} 54. Ra4 {[%clk
0:01:11.3]} 54... Kd6 {[%clk 0:00:18.4]} 55. Kh5 {[%clk 0:01:11.5]} 55... Ke6
{[%clk 0:00:18.2]} 56. Kg6 {[%clk 0:01:11.5]} 56... Kd6 {[%clk 0:00:17.8]} 57.
Rc4 {[%clk 0:01:09.7]} 57... Ke6 {[%clk 0:00:17.1]} 58. Rc6+ {[%clk 0:01:09.5]}
58... Kd7 {[%clk 0:00:15.9]} 59. Rc4 {[%clk 0:01:10.4]} 59... Kd6 {[%clk
0:00:15.5]} 60. Kg5 {[%clk 0:01:09.8]} 60... Ke6 {[%clk 0:00:15.1]} 61. Rc6+
{[%clk 0:01:08.5]} 61... Kd7 {[%clk 0:00:14.8]} 62. Rc4 {[%clk 0:01:09.4]} 62...
Kd6 {[%clk 0:00:14.5]} 63. Ra4 {[%clk 0:01:10.3]} 63... Ke6 {[%clk 0:00:13.6]}
64. Ra6+ {[%clk 0:01:09.3]} 64... Kd7 {[%clk 0:00:13]} 65. Ra7+ {[%clk
0:01:10.2]} 65... Kd6 {[%clk 0:00:12.6]} 66. Ra4 {[%clk 0:01:11.1]} 66... Kd7
{[%clk 0:00:11.8]} 67. Ra7+ {[%clk 0:01:05.2]} 67... Kd6 {[%clk 0:00:11.4]} 68.
Ra6+ {[%clk 0:01:05.2]} 68... Kd7 {[%clk 0:00:10.7]} 69. Ra4 {[%clk 0:01:05.1]}
69... Kd6 {[%clk 0:00:10.2]} 70. Rb4 {[%clk 0:01:05.6]} 70... Kd7 {[%clk
0:00:09.4]} 71. Kg6 {[%clk 0:01:05.4]} 71... Kd6 {[%clk 0:00:09]} 72. Kg5 {[%clk
0:01:04.1]} 72... Kd7 {[%clk 0:00:08.6]} 73. Kg6 {[%clk 0:01:04.6]} 73... Kd6
{[%clk 0:00:08.4]} 74. Kg5 {[%clk 0:01:05.1]} 1/2-1/2

[Event "*** Titled Tuesday Blitz"]
[Site "Chess.com"]
[Date "2020.12.29"]
[Round "2"]
[White "kobemagic"]
[Black "Chess2019Player"]
[Result "1-0"]
[WhiteElo "2437"]
[BlackElo "2210"]
[TimeControl "180+1"]
[EndTime "10:18:40 PST"]
[Termination "kobemagic won on time"]

1. c4 {[%clk 0:03:00.9]} 1... Nf6 {[%clk 0:02:59]} 2. g3 {[%clk 0:03:01]} 2...
c5 {[%clk 0:02:59]} 3. Bg2 {[%clk 0:03:01.1]} 3... Nc6 {[%clk 0:02:59.6]} 4. Nf3
{[%clk 0:03:01.4]} 4... g6 {[%clk 0:02:59.5]} 5. O-O {[%clk 0:03:01.8]} 5... Bg7
{[%clk 0:03:00]} 6. Nc3 {[%clk 0:03:02.4]} 6... O-O {[%clk 0:03:00.4]} 7. a3
{[%clk 0:03:03]} 7... d5 {[%clk 0:03:00.2]} 8. cxd5 {[%clk 0:03:02.4]} 8... Nxd5
{[%clk 0:03:01.1]} 9. Nxd5 {[%clk 0:03:03.2]} 9... Qxd5 {[%clk 0:03:00.8]} 10.
d3 {[%clk 0:03:04.1]} 10... Qd6 {[%clk 0:02:56.5]} 11. Bf4 {[%clk 0:03:03.6]}
11... e5 {[%clk 0:02:55.8]} 12. Be3 {[%clk 0:03:04.1]} 12... b6 {[%clk 0:02:53]}
13. Rb1 {[%clk 0:02:53.9]} 13... Bb7 {[%clk 0:02:51]} 14. b4 {[%clk 0:02:54.1]}
14... cxb4 {[%clk 0:02:50.4]} 15. axb4 {[%clk 0:02:55]} 15... Nxb4 {[%clk
0:02:48.9]} 16. Qa4 {[%clk 0:02:41.3]} 16... Nd5 {[%clk 0:02:47.3]} 17. Bd2
{[%clk 0:02:36.7]} 17... Bc6 {[%clk 0:02:38]} 18. Qb3 {[%clk 0:02:32.7]} 18...
Rfe8 {[%clk 0:02:30]} 19. Ng5 {[%clk 0:02:26.9]} 19... Rac8 {[%clk 0:02:24.9]}
20. e4 {[%clk 0:02:21.8]} 20... Nc7 {[%clk 0:01:47.2]} 21. Qxf7+ {[%clk
0:02:07.6]} 21... Kh8 {[%clk 0:01:47]} 22. Bh3 {[%clk 0:02:05.4]} 22... Rf8
{[%clk 0:01:25.4]} 23. Qc4 {[%clk 0:01:51.8]} 23... b5 {[%clk 0:00:58.5]} 24.
Nf7+ {[%clk 0:01:46.6]} 24... Rxf7 {[%clk 0:00:58.8]} 25. Qxf7 {[%clk
0:01:46.9]} 25... Rf8 {[%clk 0:00:59]} 26. Qa2 {[%clk 0:01:41]} 26... Qxd3
{[%clk 0:00:50.3]} 27. Bg2 {[%clk 0:01:36.9]} 27... Bxe4 {[%clk 0:00:38.8]} 28.
Bxe4 {[%clk 0:01:27.5]} 28... Qxe4 {[%clk 0:00:39.7]} 29. Qxa7 {[%clk
0:01:25.7]} 29... Ne6 {[%clk 0:00:15.2]} 30. Qe3 {[%clk 0:01:21.3]} 30... Qd5
{[%clk 0:00:12.3]} 31. Bc3 {[%clk 0:01:01.4]} 31... Nd4 {[%clk 0:00:12.3]} 32.
Bxd4 {[%clk 0:00:58.6]} 32... exd4 {[%clk 0:00:13.2]} 33. Qd3 {[%clk 0:00:59]}
33... Rf5 {[%clk 0:00:10.5]} 34. Rfe1 {[%clk 0:00:50.9]} 34... h6 {[%clk
0:00:09.7]} 35. Re7 {[%clk 0:00:41.3]} 35... Bf6 {[%clk 0:00:06.5]} 36. Re8+
{[%clk 0:00:36.9]} 36... Kh7 {[%clk 0:00:06.7]} 37. Rbe1 {[%clk 0:00:29.3]}
37... Bg7 {[%clk 0:00:05.5]} 38. Rb8 {[%clk 0:00:24.4]} 38... Qa2 {[%clk
0:00:04.2]} 39. Rf1 {[%clk 0:00:16.8]} 39... Qd5 {[%clk 0:00:02.4]} 40. Re1
{[%clk 0:00:10.3]} 40... Qa2 {[%clk 0:00:02]} 41. Re2 {[%clk 0:00:10.5]} 41...
Qd5 {[%clk 0:00:02.4]} 42. h4 {[%clk 0:00:09.5]} 42... Qd6 {[%clk 0:00:01.3]}
43. Rbe8 {[%clk 0:00:08.3]} 1-0

[Event "*** Titled Tuesday Blitz"]
[Site "Chess.com"]
[Date "2020.12.29"]
[Round "2"]
[White "FMalexhdez"]
[Black "kleopl"]
[Result "0-1"]
[WhiteElo "2275"]
[BlackElo "2471"]
[TimeControl "180+1"]
[EndTime "10:18:41 PST"]
[Termination "kleopl won on time"]

1. e4 {[%clk 0:03:00.9]} 1... c6 {[%clk 0:02:53.1]} 2. d4 {[%clk 0:02:59.9]}
2... d5 {[%clk 0:02:52.9]} 3. exd5 {[%clk 0:03:00.6]} 3... cxd5 {[%clk
0:02:53.5]} 4. Bd3 {[%clk 0:03:00.9]} 4... Nc6 {[%clk 0:02:53.2]} 5. c3 {[%clk
0:03:00.2]} 5... Nf6 {[%clk 0:02:53.4]} 6. Bg5 {[%clk 0:02:58.8]} 6... Bg4
{[%clk 0:02:50.3]} 7. Qb3 {[%clk 0:02:57.5]} 7... Qd7 {[%clk 0:02:48.4]} 8. Nd2
{[%clk 0:02:57.9]} 8... e6 {[%clk 0:02:45.6]} 9. Ngf3 {[%clk 0:02:58]} 9... Bd6
{[%clk 0:02:43.2]} 10. O-O {[%clk 0:02:57.1]} 10... O-O {[%clk 0:02:41]} 11.
Rfe1 {[%clk 0:02:57.2]} 11... Rab8 {[%clk 0:02:38.6]} 12. Bh4 {[%clk 0:02:56.4]}
12... a6 {[%clk 0:02:37.7]} 13. a4 {[%clk 0:02:54]} 13... Rfc8 {[%clk
0:02:34.5]} 14. Bg3 {[%clk 0:02:53.6]} 14... Bxg3 {[%clk 0:02:32.9]} 15. hxg3
{[%clk 0:02:52.9]} 15... b5 {[%clk 0:02:11.6]} 16. axb5 {[%clk 0:02:50.7]} 16...
axb5 {[%clk 0:02:12.5]} 17. Ne5 {[%clk 0:02:49.8]} 17... Qb7 {[%clk 0:02:05.2]}
18. Nxg4 {[%clk 0:02:42.1]} 18... Nxg4 {[%clk 0:02:06.1]} 19. Qd1 {[%clk
0:02:10.4]} 19... Nf6 {[%clk 0:02:05.2]} 20. g4 {[%clk 0:02:06.9]} 20... h6
{[%clk 0:02:04.4]} 21. Re3 {[%clk 0:01:57.3]} 21... Ra8 {[%clk 0:02:02.8]} 22.
Rxa8 {[%clk 0:01:54.1]} 22... Rxa8 {[%clk 0:02:03.7]} 23. Rg3 {[%clk 0:01:42.5]}
23... b4 {[%clk 0:02:01.8]} 24. g5 {[%clk 0:01:40.1]} 24... hxg5 {[%clk
0:02:02]} 25. Nb3 {[%clk 0:00:58.5]} 25... bxc3 {[%clk 0:01:54.6]} 26. bxc3
{[%clk 0:00:58.2]} 26... Ra3 {[%clk 0:01:40.3]} 27. Bc2 {[%clk 0:00:57.8]} 27...
Ne4 {[%clk 0:01:32.6]} 28. Bxe4 {[%clk 0:00:43.6]} 28... Qxb3 {[%clk 0:01:24.7]}
29. Qh5 {[%clk 0:00:30.1]} 29... dxe4 {[%clk 0:01:19.1]} 30. Rh3 {[%clk
0:00:21.4]} 30... Kf8 {[%clk 0:01:18.2]} 31. Qxg5 {[%clk 0:00:17]} 31... Ra1+
{[%clk 0:00:35.3]} 32. Kh2 {[%clk 0:00:15.8]} 32... Qb8+ {[%clk 0:00:35.5]} 33.
g3 {[%clk 0:00:15.3]} 33... Kg8 {[%clk 0:00:30]} 34. Qh5 {[%clk 0:00:15]} 34...
f6 {[%clk 0:00:30.1]} 35. Qh7+ {[%clk 0:00:11.7]} 35... Kf7 {[%clk 0:00:29.5]}
36. Qxe4 {[%clk 0:00:12.4]} 36... Qd6 {[%clk 0:00:27.1]} 37. Rh7 {[%clk
0:00:10.5]} 37... Qd5 {[%clk 0:00:20.6]} 38. Qxd5 {[%clk 0:00:10.4]} 38... exd5
{[%clk 0:00:20.6]} 39. Rh5 {[%clk 0:00:09.4]} 39... Ke6 {[%clk 0:00:20.5]} 40.
Rh7 {[%clk 0:00:09.2]} 40... g5 {[%clk 0:00:20.1]} 41. Rc7 {[%clk 0:00:08.7]}
41... Kd6 {[%clk 0:00:20.2]} 42. Rf7 {[%clk 0:00:08.7]} 42... Ke6 {[%clk
0:00:19.9]} 43. Rc7 {[%clk 0:00:08.6]} 43... Ra6 {[%clk 0:00:20]} 44. Kh3 {[%clk
0:00:07.9]} 44... Ne7 {[%clk 0:00:19.7]} 45. Kg4 {[%clk 0:00:07.2]} 45... Rc6
{[%clk 0:00:19.9]} 46. Rb7 {[%clk 0:00:06.1]} 46... Rxc3 {[%clk 0:00:19.4]} 47.
f4 {[%clk 0:00:04.8]} 47... gxf4 {[%clk 0:00:19.1]} 48. gxf4 {[%clk 0:00:04.9]}
48... f5+ {[%clk 0:00:19.5]} 49. Kg5 {[%clk 0:00:04.6]} 49... Rg3+ {[%clk
0:00:18.4]} 50. Kh6 {[%clk 0:00:03.9]} 50... Rg4 {[%clk 0:00:18.3]} 51. Rb6+
{[%clk 0:00:03.6]} 51... Kf7 {[%clk 0:00:17.7]} 0-1

[Event "*** Titled Tuesday Blitz"]
[Site "Chess.com"]
[Date "2020.12.29"]
[Round "2"]
[White "Aslanov_Umid"]
[Black "amatatanav"]
[Result "0-1"]
[WhiteElo "2239"]
[BlackElo "2446"]
[TimeControl "180+1"]
[EndTime "10:18:41 PST"]
[Termination "amatatanav won by checkmate"]

1. e4 {[%clk 0:03:00.9]} 1... c5 {[%clk 0:03:00]} 2. Nf3 {[%clk 0:03:00.9]} 2...
Nc6 {[%clk 0:03:00.5]} 3. d4 {[%clk 0:03:01.3]} 3... cxd4 {[%clk 0:03:01.4]} 4.
Nxd4 {[%clk 0:03:01.9]} 4... g6 {[%clk 0:03:02.1]} 5. Be3 {[%clk 0:03:00]} 5...
Nf6 {[%clk 0:03:00.8]} 6. f3 {[%clk 0:02:58.2]} 6... d5 {[%clk 0:02:46.5]} 7.
Nxc6 {[%clk 0:02:55.9]} 7... bxc6 {[%clk 0:02:46.4]} 8. exd5 {[%clk 0:02:54.6]}
8... cxd5 {[%clk 0:02:40.5]} 9. Nc3 {[%clk 0:02:53.8]} 9... Bg7 {[%clk
0:02:35.8]} 10. Bb5+ {[%clk 0:02:41.6]} 10... Bd7 {[%clk 0:02:35.7]} 11. Bxd7+
{[%clk 0:02:41.6]} 11... Qxd7 {[%clk 0:02:35.9]} 12. O-O {[%clk 0:02:39.8]}
12... O-O {[%clk 0:02:32.4]} 13. Bd4 {[%clk 0:02:38.6]} 13... e6 {[%clk
0:02:15.1]} 14. Kh1 {[%clk 0:02:35.5]} 14... Rab8 {[%clk 0:02:14.9]} 15. Rb1
{[%clk 0:02:33.6]} 15... Rfc8 {[%clk 0:02:14.5]} 16. Qd2 {[%clk 0:02:31.2]}
16... Rc4 {[%clk 0:02:09.5]} 17. Rfd1 {[%clk 0:02:27.1]} 17... Qc7 {[%clk
0:01:51.8]} 18. Qe2 {[%clk 0:02:23.4]} 18... Ng4 {[%clk 0:01:27.1]} 19. fxg4
{[%clk 0:02:19.6]} 19... Bxd4 {[%clk 0:01:17.2]} 20. Nb5 {[%clk 0:01:43.2]}
20... Rxb5 {[%clk 0:01:09.5]} 21. Rxd4 {[%clk 0:01:42.9]} 21... Rxd4 {[%clk
0:01:00.9]} 22. Qxb5 {[%clk 0:01:42.7]} 22... Qxc2 {[%clk 0:00:36.9]} 23. Rf1
{[%clk 0:01:33.5]} 23... Qc7 {[%clk 0:00:16.2]} 24. h3 {[%clk 0:01:21.7]} 24...
Rf4 {[%clk 0:00:13.4]} 25. Re1 {[%clk 0:00:58.8]} 25... h6 {[%clk 0:00:13.8]}
26. a4 {[%clk 0:00:54.9]} 26... Kg7 {[%clk 0:00:14]} 27. a5 {[%clk 0:00:50.2]}
27... Qc2 {[%clk 0:00:09.3]} 28. Re2 {[%clk 0:00:27.2]} 28... Qd1+ {[%clk
0:00:08.3]} 29. Kh2 {[%clk 0:00:27.1]} 29... Qd4 {[%clk 0:00:08.2]} 30. Qb3
{[%clk 0:00:19.1]} 30... Qc4 {[%clk 0:00:07.5]} 31. Qxc4 {[%clk 0:00:18.9]}
31... Rxc4 {[%clk 0:00:07.2]} 32. Re3 {[%clk 0:00:16.6]} 32... Rb4 {[%clk
0:00:07]} 33. b3 {[%clk 0:00:16.4]} 33... Rb5 {[%clk 0:00:07.1]} 34. b4 {[%clk
0:00:16.9]} 34... Rxb4 {[%clk 0:00:07.2]} 35. Rc3 {[%clk 0:00:17.8]} 35... Rb5
{[%clk 0:00:07.2]} 36. a6 {[%clk 0:00:17.4]} 36... Rb6 {[%clk 0:00:07.7]} 37.
Ra3 {[%clk 0:00:17.7]} 37... g5 {[%clk 0:00:08.2]} 38. Kg3 {[%clk 0:00:18.3]}
38... Kf6 {[%clk 0:00:08.5]} 39. Kf3 {[%clk 0:00:19]} 39... Ke7 {[%clk
0:00:09.2]} 40. Ke3 {[%clk 0:00:19.6]} 40... Kd6 {[%clk 0:00:09.8]} 41. Kd4
{[%clk 0:00:20.5]} 41... e5+ {[%clk 0:00:10.1]} 42. Kd3 {[%clk 0:00:21.2]} 42...
e4+ {[%clk 0:00:09.4]} 43. Kd4 {[%clk 0:00:21.2]} 43... Rb4+ {[%clk 0:00:09.5]}
44. Kc3 {[%clk 0:00:21.4]} 44... Rc4+ {[%clk 0:00:09.5]} 45. Kd2 {[%clk
0:00:21.8]} 45... Ke5 {[%clk 0:00:09.8]} 46. Ra5 {[%clk 0:00:21.4]} 46... Rc6
{[%clk 0:00:10]} 47. Ke3 {[%clk 0:00:20.3]} 47... Rb6 {[%clk 0:00:10.4]} 48. Rc5
{[%clk 0:00:18]} 48... Rb2 {[%clk 0:00:09.4]} 49. Rc7 {[%clk 0:00:17.2]} 49...
d4# {[%clk 0:00:09.6]} 0-1

[Event "*** Titled Tuesday Blitz"]
[Site "Chess.com"]
[Date "2020.12.29"]
[Round "2"]
[White "Mazetovic"]
[Black "KononenkoD"]
[Result "0-1"]
[WhiteElo "2819"]
[BlackElo "2469"]
[TimeControl "180+1"]
[EndTime "10:18:43 PST"]
[Termination "KononenkoD won by resignation"]

1. e4 {[%clk 0:02:31.1]} 1... c6 {[%clk 0:02:59.1]} 2. d4 {[%clk 0:02:30.3]}
2... d5 {[%clk 0:03:00]} 3. e5 {[%clk 0:02:25.8]} 3... Bf5 {[%clk 0:02:59.1]} 4.
Nf3 {[%clk 0:02:25.7]} 4... e6 {[%clk 0:02:59.4]} 5. Be2 {[%clk 0:02:25.5]} 5...
Ne7 {[%clk 0:02:59.9]} 6. O-O {[%clk 0:02:25.1]} 6... c5 {[%clk 0:03:00.4]} 7.
Be3 {[%clk 0:02:12.9]} 7... Nec6 {[%clk 0:02:44.6]} 8. c3 {[%clk 0:02:12.3]}
8... Nd7 {[%clk 0:02:42.5]} 9. Nbd2 {[%clk 0:02:10.4]} 9... Be7 {[%clk
0:02:39.1]} 10. Ne1 {[%clk 0:01:52.6]} 10... Qb6 {[%clk 0:02:24]} 11. b3 {[%clk
0:01:16.2]} 11... cxd4 {[%clk 0:02:21.6]} 12. cxd4 {[%clk 0:01:16.2]} 12... Nxd4
{[%clk 0:02:13.8]} 13. Ndf3 {[%clk 0:01:14.9]} 13... Nxe2+ {[%clk 0:01:53.6]}
14. Qxe2 {[%clk 0:01:15.8]} 14... Bc5 {[%clk 0:01:53.5]} 15. Bxc5 {[%clk
0:01:07.7]} 15... Nxc5 {[%clk 0:01:51.5]} 16. Nd4 {[%clk 0:01:07]} 16... Be4
{[%clk 0:01:49]} 17. Qe3 {[%clk 0:00:54.3]} 17... O-O {[%clk 0:01:45.8]} 18. f3
{[%clk 0:00:41.7]} 18... Bg6 {[%clk 0:01:45.6]} 19. Rc1 {[%clk 0:00:40.5]} 19...
Rac8 {[%clk 0:01:44.3]} 20. Rc3 {[%clk 0:00:29.4]} 20... Na6 {[%clk 0:01:23]}
21. Rf2 {[%clk 0:00:25.2]} 21... Rxc3 {[%clk 0:01:15.6]} 22. Qxc3 {[%clk
0:00:24.7]} 22... Nb4 {[%clk 0:01:16.1]} 23. Rd2 {[%clk 0:00:17.1]} 23... Nc6
{[%clk 0:01:14.3]} 24. Kf1 {[%clk 0:00:16.2]} 24... Nxe5 {[%clk 0:01:12.5]} 25.
Qe3 {[%clk 0:00:10.2]} 25... Nc6 {[%clk 0:01:10.3]} 26. g3 {[%clk 0:00:08.1]}
26... Nxd4 {[%clk 0:01:07.6]} 27. Qxd4 {[%clk 0:00:08.4]} 27... Qxd4 {[%clk
0:01:07]} 28. Rxd4 {[%clk 0:00:09.3]} 28... Rc8 {[%clk 0:01:07.1]} 29. Ke2
{[%clk 0:00:09.1]} 29... Kf8 {[%clk 0:01:03.4]} 30. Kd2 {[%clk 0:00:09.4]} 30...
Ke7 {[%clk 0:01:03.6]} 31. Ra4 {[%clk 0:00:10.3]} 31... a6 {[%clk 0:01:03.4]}
32. Rb4 {[%clk 0:00:10.4]} 32... Rc7 {[%clk 0:01:03.9]} 33. Rb6 {[%clk
0:00:10.1]} 33... Kd7 {[%clk 0:01:03.5]} 34. a4 {[%clk 0:00:10.3]} 34... Kc8
{[%clk 0:01:03.4]} 35. g4 {[%clk 0:00:09.8]} 35... Rc6 {[%clk 0:01:03.6]} 36.
Rb4 {[%clk 0:00:09.4]} 36... Kc7 {[%clk 0:01:03.4]} 37. h4 {[%clk 0:00:09.6]}
37... h6 {[%clk 0:01:01.6]} 38. h5 {[%clk 0:00:09.7]} 38... Bh7 {[%clk
0:01:01.7]} 39. Rf4 {[%clk 0:00:10]} 39... f6 {[%clk 0:01:01]} 40. Rd4 {[%clk
0:00:10.3]} 40... Kd6 {[%clk 0:01:00.3]} 41. f4 {[%clk 0:00:09.8]} 41... e5
{[%clk 0:00:59.6]} 42. fxe5+ {[%clk 0:00:10.3]} 42... fxe5 {[%clk 0:01:00.1]}
43. Rb4 {[%clk 0:00:11.2]} 43... Kc7 {[%clk 0:00:56.1]} 44. g5 {[%clk
0:00:10.8]} 44... Be4 {[%clk 0:00:55.1]} 45. gxh6 {[%clk 0:00:10.3]} 45... gxh6
{[%clk 0:00:55.2]} 46. Nd3 {[%clk 0:00:10.4]} 46... Bxd3 {[%clk 0:00:55]} 47.
Kxd3 {[%clk 0:00:11.3]} 47... Rb6 {[%clk 0:00:54.8]} 48. Rg4 {[%clk 0:00:10.6]}
48... Rxb3+ {[%clk 0:00:53.1]} 49. Kc2 {[%clk 0:00:11.5]} 49... Rh3 {[%clk
0:00:53.2]} 50. Rg7+ {[%clk 0:00:12.4]} 50... Kb8 {[%clk 0:00:53]} 51. Re7
{[%clk 0:00:12.8]} 51... Rxh5 {[%clk 0:00:52]} 52. Re6 {[%clk 0:00:13.7]} 52...
d4 {[%clk 0:00:51.7]} 53. Kd3 {[%clk 0:00:13.6]} 53... Kc7 {[%clk 0:00:50.6]}
54. a5 {[%clk 0:00:13.5]} 54... e4+ {[%clk 0:00:45]} 55. Kxd4 {[%clk 0:00:13.2]}
55... Rxa5 {[%clk 0:00:45.4]} 56. Rxh6 {[%clk 0:00:13.8]} 56... Ra4+ {[%clk
0:00:45.5]} 57. Kc3 {[%clk 0:00:13.8]} 57... Ra3+ {[%clk 0:00:43.5]} 58. Kb4
{[%clk 0:00:13.1]} 58... Rd3 {[%clk 0:00:41.7]} 59. Rh7+ {[%clk 0:00:13.4]}
59... Rd7 {[%clk 0:00:40.1]} 60. Rh4 {[%clk 0:00:13.7]} 60... Re7 {[%clk
0:00:40.5]} 61. Rh2 {[%clk 0:00:13.9]} 61... e3 {[%clk 0:00:40.7]} 62. Re2
{[%clk 0:00:14.8]} 62... Kc6 {[%clk 0:00:40.9]} 63. Kc3 {[%clk 0:00:15.7]} 63...
Kc5 {[%clk 0:00:40.8]} 64. Kd3 {[%clk 0:00:16.6]} 64... Kd5 {[%clk 0:00:40.9]}
65. Rc2 {[%clk 0:00:17.5]} 65... e2 {[%clk 0:00:40.6]} 0-1